[Event "Meltwater Champions Chess Tour 2022: Chessable Masters | Prelims"]
[White "Grandelius, Nils"]
[Black "Praggnanandhaa, R"]
[WhiteFideId "1710400"]
[BlackFideId "25059530"]
[WhiteElo "2652"]
[BlackElo "1927"]
[Result "1/2-1/2"]
[Round "04"]
[TimeControl "900+10"]
[Date "2022.05.19"]
[WhiteClock "0:03:49"]
[BlackClock "0:06:19"]

1. e4 {[%clk 0:15:20]}  c5 {[%clk 0:15:20]} 2. c3 {[%clk 0:15:28]}  d5 {[%clk 0:15:27]} 3. exd5 {[%clk 0:15:36]}  Qxd5 {[%clk 0:15:37]} 4. d4 {[%clk 0:15:39]}  Nf6 {[%clk 0:15:45]} 5. Nf3 {[%clk 0:15:46]}  Nc6 {[%clk 0:15:53]} 6. Na3 {[%clk 0:15:27]}  e6 {[%clk 0:14:21]} 7. Nb5 {[%clk 0:14:46]}  Qd8 {[%clk 0:13:55]} 8. dxc5 {[%clk 0:13:40]}  Bxc5 {[%clk 0:13:52]} 9. Qxd8+ {[%clk 0:13:29]}  Kxd8 {[%clk 0:14:02]} 10. Bf4 {[%clk 0:10:09]}  a6 {[%clk 0:12:10]} 11. Nd6 {[%clk 0:09:46]}  Ke7 {[%clk 0:12:16]} 12. Nxc8+ {[%clk 0:09:11]}  Raxc8 {[%clk 0:12:26]} 13. Bd3 {[%clk 0:09:19]}  Rhd8 {[%clk 0:12:00]} 14. Rd1 {[%clk 0:09:26]}  h6 {[%clk 0:11:31]} 15. Ke2 {[%clk 0:08:18]}  Rd5 {[%clk 0:10:39]} 16. Bc2 {[%clk 0:08:05]}  Rcd8 {[%clk 0:10:00]} 17. Rxd5 {[%clk 0:08:05]}  Rxd5 {[%clk 0:10:10]} 18. Rd1 {[%clk 0:06:09]}  Rxd1 {[%clk 0:09:35]} 19. Bxd1 {[%clk 0:06:19]}  Ne4 {[%clk 0:09:41]} 20. Bg3 {[%clk 0:05:25]}  f5 {[%clk 0:08:18]} 21. Bc2 {[%clk 0:05:17]}  Nxg3+ {[%clk 0:08:23]} 22. hxg3 {[%clk 0:05:27]}  g5 {[%clk 0:08:09]} 23. b4 {[%clk 0:04:55]}  Bd6 {[%clk 0:07:46]} 24. a3 {[%clk 0:05:00]}  a5 {[%clk 0:07:12]} 25. Ba4 {[%clk 0:04:48]}  Ne5 {[%clk 0:06:33]} 26. Nxe5 {[%clk 0:02:32]}  Bxe5 {[%clk 0:06:43]} 27. Kd3 {[%clk 0:02:41]}  g4 {[%clk 0:06:50]} 28. Bb5 {[%clk 0:02:33]}  b6 {[%clk 0:06:28]} 29. Bc4 {[%clk 0:02:32]}  Kd6 {[%clk 0:06:33]} 30. Bb5 {[%clk 0:02:37]}  Bf6 {[%clk 0:06:40]} 31. Ba6 {[%clk 0:02:37]}  Bg5 {[%clk 0:06:45]} 32. bxa5 {[%clk 0:02:30]}  bxa5 {[%clk 0:06:52]} 33. a4 {[%clk 0:02:39]}  Bc1 {[%clk 0:06:55]} 34. Bb5 {[%clk 0:02:46]}  Ba3 {[%clk 0:07:01]} 35. Bc4 {[%clk 0:02:53]}  Bc5 {[%clk 0:07:09]} 36. Ke2 {[%clk 0:03:02]}  Ke5 {[%clk 0:07:14]} 37. Bb3 {[%clk 0:03:05]}  Kf6 {[%clk 0:06:57]} 38. Bc4 {[%clk 0:03:10]}  e5 {[%clk 0:06:31]} 39. Ba6 {[%clk 0:03:16]}  Bb6 {[%clk 0:05:54]} 40. Bc8 {[%clk 0:03:22]}  Bc5 {[%clk 0:06:00]} 41. Bd7 {[%clk 0:03:30]}  Bb6 {[%clk 0:05:59]} 42. Bc8 {[%clk 0:03:35]}  Bc5 {[%clk 0:06:10]} 43. Bd7 {[%clk 0:03:40]}  Bb6 {[%clk 0:06:19]} 44. Bc8 {[%clk 0:03:49]} 1/2-1/2


[Site "http://www.chessbomb.com"]

[Event "Meltwater Champions Chess Tour 2022: Chessable Masters | Prelims"]
[White "Praggnanandhaa, R"]
[Black "Carlsen, Magnus"]
[WhiteFideId "25059530"]
[BlackFideId "1503014"]
[WhiteElo "1927"]
[BlackElo "2847"]
[Result "1-0"]
[Round "05"]
[TimeControl "900+10"]
[Date "2022.05.20"]
[WhiteClock "0:00:32"]
[BlackClock "0:00:17"]

1. e4 {[%clk 0:15:20]}  e5 {[%clk 0:15:20]} 2. Nf3 {[%clk 0:15:28]}  Nc6 {[%clk 0:15:24]} 3. Bb5 {[%clk 0:15:36]}  a6 {[%clk 0:15:06]} 4. Ba4 {[%clk 0:15:43]}  Nf6 {[%clk 0:15:08]} 5. d3 {[%clk 0:15:43]}  Bc5 {[%clk 0:14:48]} 6. c3 {[%clk 0:15:50]}  b5 {[%clk 0:14:16]} 7. Bb3 {[%clk 0:15:55]}  d6 {[%clk 0:14:18]} 8. Bg5 {[%clk 0:15:49]}  h6 {[%clk 0:14:26]} 9. Bh4 {[%clk 0:15:56]}  Bb6 {[%clk 0:14:12]} 10. a4 {[%clk 0:15:53]}  Rb8 {[%clk 0:14:07]} 11. axb5 {[%clk 0:15:31]}  axb5 {[%clk 0:14:16]} 12. Na3 {[%clk 0:15:28]}  g5 {[%clk 0:12:49]} 13. Bg3 {[%clk 0:15:34]}  Na5 {[%clk 0:12:53]} 14. Bc2 {[%clk 0:13:34]}  b4 {[%clk 0:12:59]} 15. cxb4 {[%clk 0:13:20]}  Nc6 {[%clk 0:13:08]} 16. Ba4 {[%clk 0:11:58]}  Bd7 {[%clk 0:13:16]} 17. Nc4 {[%clk 0:10:28]}  Nxb4 {[%clk 0:10:16]} 18. Bxd7+ {[%clk 0:10:35]}  Nxd7 {[%clk 0:10:24]} 19. O-O {[%clk 0:10:44]}  O-O {[%clk 0:09:30]} 20. Nxb6 {[%clk 0:09:22]}  Rxb6 {[%clk 0:09:35]} 21. d4 {[%clk 0:09:31]}  Nc6 {[%clk 0:07:57]} 22. Rc1 {[%clk 0:06:40]}  Nxd4 {[%clk 0:05:42]} 23. Nxd4 {[%clk 0:06:46]}  exd4 {[%clk 0:05:52]} 24. Qxd4 {[%clk 0:06:55]}  Nc5 {[%clk 0:05:13]} 25. Rcd1 {[%clk 0:04:56]}  Ne6 {[%clk 0:04:45]} 26. Qc3 {[%clk 0:04:56]}  f6 {[%clk 0:02:58]} 27. f4 {[%clk 0:01:51]}  Qe7 {[%clk 0:03:01]} 28. b4 {[%clk 0:01:46]}  Rbb8 {[%clk 0:00:54]} 29. f5 {[%clk 0:00:59]}  Nd8 {[%clk 0:00:42]} 30. Rd4 {[%clk 0:01:06]}  Nf7 {[%clk 0:00:27]} 31. Rc4 {[%clk 0:01:06]}  Rb7 {[%clk 0:00:31]} 32. Rc1 {[%clk 0:01:11]}  Rfb8 {[%clk 0:00:34]} 33. h4 {[%clk 0:00:36]}  gxh4 {[%clk 0:00:25]} 34. Bxh4 {[%clk 0:00:41]}  Ne5 {[%clk 0:00:35]} 35. Rxc7 {[%clk 0:00:19]}  Rxc7 {[%clk 0:00:43]} 36. Qxc7 {[%clk 0:00:29]}  Qxc7 {[%clk 0:00:53]} 37. Rxc7 {[%clk 0:00:38]}  Rxb4 {[%clk 0:01:02]} 38. Re7 {[%clk 0:00:17]}  d5 {[%clk 0:00:43]} 39. Kf1 {[%clk 0:00:26]}  dxe4 {[%clk 0:00:13]} 40. Bxf6 {[%clk 0:00:28]}  Ng4 {[%clk 0:00:17]} 41. Rg7+ {[%clk 0:00:32]} 1-0


[Site "http://www.chessbomb.com"]

[Event "Meltwater Champions Chess Tour 2022: Chessable Masters | Prelims"]
[White "Harikrishna, Pentala"]
[Black "Grandelius, Nils"]
[WhiteFideId "5007003"]
[BlackFideId "1710400"]
[WhiteElo "2624"]
[BlackElo "2652"]
[Result "1/2-1/2"]
[Round "05"]
[TimeControl "900+10"]
[Date "2022.05.20"]
[WhiteClock "0:02:37"]
[BlackClock "0:00:32"]

1. d4 {[%clk 0:15:20]}  Nf6 {[%clk 0:15:20]} 2. Nf3 {[%clk 0:15:28]}  g6 {[%clk 0:15:23]} 3. Nc3 {[%clk 0:15:26]}  d5 {[%clk 0:15:22]} 4. Bf4 {[%clk 0:15:34]}  Bg7 {[%clk 0:15:30]} 5. e3 {[%clk 0:15:33]}  O-O {[%clk 0:15:34]} 6. Nb5 {[%clk 0:15:35]}  Na6 {[%clk 0:15:37]} 7. h3 {[%clk 0:15:37]}  Ne4 {[%clk 0:15:29]} 8. Nd2 {[%clk 0:15:01]}  c6 {[%clk 0:15:22]} 9. Nxe4 {[%clk 0:15:06]}  dxe4 {[%clk 0:15:32]} 10. Nc3 {[%clk 0:15:13]}  c5 {[%clk 0:15:38]} 11. Nxe4 {[%clk 0:15:08]}  cxd4 {[%clk 0:15:45]} 12. exd4 {[%clk 0:15:15]}  Nb4 {[%clk 0:15:39]} 13. Be3 {[%clk 0:09:40]}  Bxd4 {[%clk 0:11:31]} 14. a3 {[%clk 0:09:17]}  Bxe3 {[%clk 0:11:27]} 15. axb4 {[%clk 0:09:25]}  Bh6 {[%clk 0:10:28]} 16. Bd3 {[%clk 0:09:07]}  Qb6 {[%clk 0:09:19]} 17. c3 {[%clk 0:09:07]}  Bf5 {[%clk 0:09:14]} 18. Nc5 {[%clk 0:07:18]}  Rfd8 {[%clk 0:08:39]} 19. Qe2 {[%clk 0:07:16]}  Bxd3 {[%clk 0:07:46]} 20. Nxd3 {[%clk 0:07:17]}  Qb5 {[%clk 0:07:34]} 21. Rd1 {[%clk 0:04:40]}  a5 {[%clk 0:06:21]} 22. O-O {[%clk 0:02:52]}  axb4 {[%clk 0:06:28]} 23. Qe4 {[%clk 0:02:36]}  bxc3 {[%clk 0:06:05]} 24. bxc3 {[%clk 0:02:45]}  Rac8 {[%clk 0:04:19]} 25. Ne5 {[%clk 0:01:57]}  Bg7 {[%clk 0:03:45]} 26. Nf3 {[%clk 0:01:59]}  Bxc3 {[%clk 0:02:02]} 27. Rxd8+ {[%clk 0:01:10]}  Rxd8 {[%clk 0:02:12]} 28. Rb1 {[%clk 0:01:08]}  Qd5 {[%clk 0:00:27]} 29. Qxd5 {[%clk 0:01:03]}  Rxd5 {[%clk 0:00:36]} 30. Rxb7 {[%clk 0:01:13]}  e6 {[%clk 0:00:35]} 31. g4 {[%clk 0:01:05]}  h6 {[%clk 0:00:38]} 32. Kg2 {[%clk 0:01:11]}  Kg7 {[%clk 0:00:48]} 33. Rc7 {[%clk 0:01:15]}  Bf6 {[%clk 0:00:48]} 34. Rc2 {[%clk 0:01:23]}  Ra5 {[%clk 0:00:53]} 35. Nd2 {[%clk 0:01:32]}  Bg5 {[%clk 0:00:46]} 36. Ne4 {[%clk 0:01:37]}  Bf4 {[%clk 0:00:54]} 37. Rb2 {[%clk 0:01:25]}  g5 {[%clk 0:00:39]} 38. Rb7 {[%clk 0:01:29]}  Kg6 {[%clk 0:00:44]} 39. Rb2 {[%clk 0:01:34]}  Ra4 {[%clk 0:00:37]} 40. Kf3 {[%clk 0:01:36]}  Ra1 {[%clk 0:00:38]} 41. Kg2 {[%clk 0:01:30]}  Re1 {[%clk 0:00:46]} 42. Nc5 {[%clk 0:01:29]}  Rd1 {[%clk 0:00:43]} 43. Ne4 {[%clk 0:01:26]}  Rd4 {[%clk 0:00:49]} 44. Kf3 {[%clk 0:01:34]}  h5 {[%clk 0:00:45]} 45. Ra2 {[%clk 0:01:11]}  Rd3+ {[%clk 0:00:33]} 46. Kg2 {[%clk 0:01:20]}  Rd4 {[%clk 0:00:43]} 47. Kf3 {[%clk 0:01:23]}  Rb4 {[%clk 0:00:37]} 48. Ra8 {[%clk 0:01:26]}  Rb3+ {[%clk 0:00:28]} 49. Kg2 {[%clk 0:01:34]}  hxg4 {[%clk 0:00:33]} 50. hxg4 {[%clk 0:01:43]}  Kg7 {[%clk 0:00:26]} 51. Ra5 {[%clk 0:01:46]}  Rb4 {[%clk 0:00:25]} 52. Kf3 {[%clk 0:01:44]}  Rb3+ {[%clk 0:00:30]} 53. Kg2 {[%clk 0:01:53]}  Rb4 {[%clk 0:00:38]} 54. Kf3 {[%clk 0:02:02]}  Kg6 {[%clk 0:00:44]} 55. Ra8 {[%clk 0:02:10]}  Bb8 {[%clk 0:00:48]} 56. Ra5 {[%clk 0:02:15]}  Rb3+ {[%clk 0:00:25]} 57. Kg2 {[%clk 0:02:21]}  Bf4 {[%clk 0:00:34]} 58. Ra8 {[%clk 0:02:28]}  Kg7 {[%clk 0:00:32]} 59. Ra5 {[%clk 0:02:37]} 1/2-1/2


[Site "http://www.chessbomb.com"]

[Event "Meltwater Champions Chess Tour 2022: Chessable Masters | Prelims"]
[White "Jones, Gawain C B"]
[Black "Tari, Aryan"]
[WhiteFideId "409561"]
[BlackFideId "1510045"]
[WhiteElo "2630"]
[BlackElo "2531"]
[Result "1/2-1/2"]
[Round "05"]
[TimeControl "900+10"]
[Date "2022.05.20"]
[WhiteClock "0:02:49"]
[BlackClock "0:00:44"]

1. e4 {[%clk 0:15:20]}  c6 {[%clk 0:15:20]} 2. d4 {[%clk 0:15:19]}  d5 {[%clk 0:15:26]} 3. e5 {[%clk 0:15:27]}  Bf5 {[%clk 0:15:34]} 4. g4 {[%clk 0:15:34]}  Be4 {[%clk 0:15:22]} 5. f3 {[%clk 0:15:42]}  Bg6 {[%clk 0:15:31]} 6. e6 {[%clk 0:15:48]}  Qd6 {[%clk 0:15:15]} 7. exf7+ {[%clk 0:15:53]}  Bxf7 {[%clk 0:15:25]} 8. Nc3 {[%clk 0:16:01]}  Nd7 {[%clk 0:15:26]} 9. f4 {[%clk 0:15:55]}  g5 {[%clk 0:14:48]} 10. Nh3 {[%clk 0:13:57]}  gxf4 {[%clk 0:10:46]} 11. Bxf4 {[%clk 0:14:04]}  e5 {[%clk 0:10:45]} 12. dxe5 {[%clk 0:14:09]}  Nxe5 {[%clk 0:10:43]} 13. Qe2 {[%clk 0:11:34]}  Bg7 {[%clk 0:10:50]} 14. Bg2 {[%clk 0:11:38]}  Ne7 {[%clk 0:10:19]} 15. O-O-O {[%clk 0:11:04]}  O-O {[%clk 0:09:17]} 16. Ne4 {[%clk 0:08:26]}  Qb4 {[%clk 0:07:27]} 17. Nf6+ {[%clk 0:07:10]}  Bxf6 {[%clk 0:07:33]} 18. Bxe5 {[%clk 0:07:20]}  Bxe5 {[%clk 0:05:59]} 19. Qxe5 {[%clk 0:07:30]}  Ng6 {[%clk 0:06:09]} 20. Qg3 {[%clk 0:07:15]}  Be6 {[%clk 0:05:57]} 21. Bf3 {[%clk 0:06:58]}  Rxf3 {[%clk 0:05:11]} 22. Qxf3 {[%clk 0:07:06]}  Bxg4 {[%clk 0:05:20]} 23. Qe3 {[%clk 0:06:54]}  Bxd1 {[%clk 0:05:27]} 24. Qe6+ {[%clk 0:06:59]}  Kg7 {[%clk 0:05:31]} 25. Rxd1 {[%clk 0:06:37]}  Qe7 {[%clk 0:05:13]} 26. Qg4 {[%clk 0:06:32]}  Kg8 {[%clk 0:03:12]} 27. Ng5 {[%clk 0:06:06]}  Rf8 {[%clk 0:03:14]} 28. h4 {[%clk 0:06:09]}  Rf4 {[%clk 0:02:42]} 29. Qc8+ {[%clk 0:06:16]}  Nf8 {[%clk 0:02:52]} 30. Kb1 {[%clk 0:04:36]}  Qe2 {[%clk 0:02:47]} 31. Rc1 {[%clk 0:04:40]}  Rf1 {[%clk 0:02:40]} 32. b3 {[%clk 0:04:41]}  Rxc1+ {[%clk 0:02:45]} 33. Kxc1 {[%clk 0:04:50]}  h6 {[%clk 0:02:11]} 34. Qxb7 {[%clk 0:02:56]}  hxg5 {[%clk 0:02:18]} 35. hxg5 {[%clk 0:03:05]}  Qe3+ {[%clk 0:02:26]} 36. Kb1 {[%clk 0:03:12]}  Qb6 {[%clk 0:02:12]} 37. Qe7 {[%clk 0:03:10]}  Qg1+ {[%clk 0:02:17]} 38. Kb2 {[%clk 0:03:19]}  Qd4+ {[%clk 0:02:27]} 39. Kb1 {[%clk 0:03:17]}  a5 {[%clk 0:02:19]} 40. a4 {[%clk 0:03:23]}  Qd1+ {[%clk 0:02:05]} 41. Kb2 {[%clk 0:03:32]}  Qd4+ {[%clk 0:02:15]} 42. Kb1 {[%clk 0:03:41]}  Qc3 {[%clk 0:01:54]} 43. Qc7 {[%clk 0:03:11]}  c5 {[%clk 0:01:18]} 44. Qd6 {[%clk 0:02:15]}  Qd4 {[%clk 0:01:19]} 45. Qb6 {[%clk 0:02:19]}  Qc3 {[%clk 0:00:45]} 46. Qd6 {[%clk 0:02:27]}  Qd4 {[%clk 0:00:34]} 47. Qb6 {[%clk 0:02:35]}  Qd1+ {[%clk 0:00:18]} 48. Kb2 {[%clk 0:02:44]}  c4 {[%clk 0:00:26]} 49. bxc4 {[%clk 0:02:38]}  dxc4 {[%clk 0:00:27]} 50. Qxa5 {[%clk 0:02:34]}  Qd4+ {[%clk 0:00:35]} 51. Qc3 {[%clk 0:02:40]}  Qd5 {[%clk 0:00:36]} 52. Qf6 {[%clk 0:02:17]}  Qa5 {[%clk 0:00:36]} 53. g6 {[%clk 0:02:14]}  Qb4+ {[%clk 0:00:42]} 54. Kc1 {[%clk 0:02:22]}  Qe1+ {[%clk 0:00:36]} 55. Kb2 {[%clk 0:02:31]}  Qb4+ {[%clk 0:00:46]} 56. Kc1 {[%clk 0:02:40]}  Qe1+ {[%clk 0:00:34]} 57. Kb2 {[%clk 0:02:49]}  Qb4+ {[%clk 0:00:44]} 1/2-1/2


[Site "http://www.chessbomb.com"]

[Event "Meltwater Champions Chess Tour 2022: Chessable Masters | Prelims"]
[White "Anton Guijarro, David"]
[Black "Giri, Anish"]
[WhiteFideId "2285525"]
[BlackFideId "24116068"]
[WhiteElo "2633"]
[BlackElo "2730"]
[Result "1/2-1/2"]
[Round "05"]
[TimeControl "900+10"]
[Date "2022.05.20"]
[WhiteClock "0:00:37"]
[BlackClock "0:00:50"]

1. e4 {[%clk 0:15:20]}  c5 {[%clk 0:15:20]} 2. Nf3 {[%clk 0:15:27]}  d6 {[%clk 0:15:28]} 3. c3 {[%clk 0:15:32]}  Nf6 {[%clk 0:15:36]} 4. Be2 {[%clk 0:15:40]}  g6 {[%clk 0:15:23]} 5. O-O {[%clk 0:15:46]}  Bg7 {[%clk 0:15:32]} 6. Bb5+ {[%clk 0:15:48]}  Bd7 {[%clk 0:14:37]} 7. Bxd7+ {[%clk 0:15:52]}  Nbxd7 {[%clk 0:14:20]} 8. Qe2 {[%clk 0:15:35]}  O-O {[%clk 0:14:08]} 9. d4 {[%clk 0:15:37]}  cxd4 {[%clk 0:13:13]} 10. cxd4 {[%clk 0:15:44]}  Nb6 {[%clk 0:13:22]} 11. Nc3 {[%clk 0:15:08]}  Rc8 {[%clk 0:13:29]} 12. Rd1 {[%clk 0:14:47]}  Qc7 {[%clk 0:13:20]} 13. a4 {[%clk 0:13:08]}  Qc4 {[%clk 0:11:55]} 14. Qc2 {[%clk 0:11:20]}  d5 {[%clk 0:09:54]} 15. a5 {[%clk 0:10:06]}  Nbd7 {[%clk 0:08:48]} 16. e5 {[%clk 0:07:24]}  Ne4 {[%clk 0:08:56]} 17. Ra3 {[%clk 0:06:48]}  Rc6 {[%clk 0:05:40]} 18. Qb1 {[%clk 0:05:45]}  Rfc8 {[%clk 0:04:26]} 19. h4 {[%clk 0:03:53]}  Bf8 {[%clk 0:03:09]} 20. Rd3 {[%clk 0:01:39]}  e6 {[%clk 0:03:09]} 21. Ra1 {[%clk 0:01:48]}  Bb4 {[%clk 0:01:38]} 22. Nd2 {[%clk 0:01:49]}  Nxc3 {[%clk 0:01:14]} 23. bxc3 {[%clk 0:01:51]}  Qa6 {[%clk 0:01:21]} 24. Bb2 {[%clk 0:01:29]}  Bxc3 {[%clk 0:00:42]} 25. Bxc3 {[%clk 0:01:36]}  Rxc3 {[%clk 0:00:52]} 26. Rxc3 {[%clk 0:01:46]}  Rxc3 {[%clk 0:01:02]} 27. Nf3 {[%clk 0:01:53]}  Qc6 {[%clk 0:01:04]} 28. Kh2 {[%clk 0:01:41]}  h6 {[%clk 0:01:06]} 29. Qb4 {[%clk 0:01:40]}  Rc2 {[%clk 0:01:00]} 30. Kg3 {[%clk 0:01:03]}  Qa6 {[%clk 0:00:42]} 31. Re1 {[%clk 0:00:53]}  Nf8 {[%clk 0:00:46]} 32. Qb3 {[%clk 0:00:50]}  Rc7 {[%clk 0:00:40]} 33. Qe3 {[%clk 0:00:53]}  Kh7 {[%clk 0:00:33]} 34. Qd2 {[%clk 0:00:34]}  Qc4 {[%clk 0:00:35]} 35. Qf4 {[%clk 0:00:41]}  Qc2 {[%clk 0:00:22]} 36. Qf6 {[%clk 0:00:37]}  Rd7 {[%clk 0:00:30]} 37. Re3 {[%clk 0:00:33]}  Kg8 {[%clk 0:00:36]} 38. Qf4 {[%clk 0:00:37]}  Kg7 {[%clk 0:00:37]} 39. Qf6+ {[%clk 0:00:35]}  Kg8 {[%clk 0:00:46]} 40. Qf4 {[%clk 0:00:36]}  Kg7 {[%clk 0:00:41]} 41. Qf6+ {[%clk 0:00:37]}  Kg8 {[%clk 0:00:50]} 1/2-1/2


[Site "http://www.chessbomb.com"]

[Event "Meltwater Champions Chess Tour 2022: Chessable Masters | Prelims"]
[White "Ding, Liren"]
[Black "Wei, Yi"]
[WhiteFideId "8603677"]
[BlackFideId "8603405"]
[WhiteElo "2836"]
[BlackElo "2752"]
[Result "1/2-1/2"]
[Round "05"]
[TimeControl "900+10"]
[Date "2022.05.20"]
[WhiteClock "0:10:51"]
[BlackClock "0:08:32"]

1. c4 {[%clk 0:15:20]}  Nf6 {[%clk 0:15:20]} 2. Nf3 {[%clk 0:15:19]}  e6 {[%clk 0:15:25]} 3. g3 {[%clk 0:15:23]}  d5 {[%clk 0:15:33]} 4. Bg2 {[%clk 0:15:32]}  Be7 {[%clk 0:15:42]} 5. O-O {[%clk 0:15:39]}  O-O {[%clk 0:15:51]} 6. d4 {[%clk 0:15:34]}  dxc4 {[%clk 0:15:59]} 7. Qc2 {[%clk 0:15:43]}  a6 {[%clk 0:16:08]} 8. a4 {[%clk 0:15:52]}  Bd7 {[%clk 0:16:17]} 9. Qxc4 {[%clk 0:16:02]}  Bc6 {[%clk 0:16:26]} 10. Bf4 {[%clk 0:16:01]}  Bd6 {[%clk 0:16:35]} 11. Qc1 {[%clk 0:16:11]}  a5 {[%clk 0:16:43]} 12. Bd2 {[%clk 0:16:14]}  Qe7 {[%clk 0:16:14]} 13. Nc3 {[%clk 0:15:45]}  Na6 {[%clk 0:15:43]} 14. Qb1 {[%clk 0:13:13]}  Bb4 {[%clk 0:15:48]} 15. Re1 {[%clk 0:13:10]}  Bxf3 {[%clk 0:15:56]} 16. Bxf3 {[%clk 0:13:20]}  Rad8 {[%clk 0:16:04]} 17. Qc2 {[%clk 0:10:33]}  Rxd4 {[%clk 0:11:48]} 18. Bxb7 {[%clk 0:10:41]}  Nc5 {[%clk 0:11:36]} 19. Bf3 {[%clk 0:10:47]}  Nb3 {[%clk 0:09:43]} 20. Qxb3 {[%clk 0:10:03]}  Rxd2 {[%clk 0:09:50]} 21. Red1 {[%clk 0:10:12]}  Rfd8 {[%clk 0:09:38]} 22. Rxd2 {[%clk 0:10:10]}  Rxd2 {[%clk 0:09:47]} 23. Rd1 {[%clk 0:10:11]}  Qd8 {[%clk 0:08:58]} 24. Rxd2 {[%clk 0:09:46]}  Qxd2 {[%clk 0:09:06]} 25. e3 {[%clk 0:09:55]}  g5 {[%clk 0:07:21]} 26. Ne4 {[%clk 0:09:45]}  Nxe4 {[%clk 0:07:29]} 27. Bxe4 {[%clk 0:09:55]}  Kg7 {[%clk 0:07:37]} 28. Qc2 {[%clk 0:09:57]}  Qxc2 {[%clk 0:07:46]} 29. Bxc2 {[%clk 0:10:07]}  h6 {[%clk 0:07:55]} 30. b3 {[%clk 0:10:15]}  Kf6 {[%clk 0:08:04]} 31. Bd3 {[%clk 0:10:22]}  Kg7 {[%clk 0:08:13]} 32. Bc2 {[%clk 0:10:31]}  Kf6 {[%clk 0:08:23]} 33. Bd3 {[%clk 0:10:41]}  Kg7 {[%clk 0:08:32]} 34. Bc2 {[%clk 0:10:51]} 1/2-1/2


[Site "http://www.chessbomb.com"]

[Event "Meltwater Champions Chess Tour 2022: Chessable Masters | Prelims"]
[White "Hansen, Eric"]
[Black "Vidit, Santosh Gujrathi"]
[WhiteFideId "2606771"]
[BlackFideId "5029465"]
[WhiteElo "2579"]
[BlackElo "2617"]
[Result "1-0"]
[Round "05"]
[TimeControl "900+10"]
[Date "2022.05.20"]
[WhiteClock "0:02:14"]
[BlackClock "0:00:04"]

1. e4 {[%clk 0:15:20]}  e5 {[%clk 0:15:20]} 2. Nf3 {[%clk 0:15:25]}  Nc6 {[%clk 0:15:29]} 3. Bb5 {[%clk 0:15:15]}  Nf6 {[%clk 0:15:37]} 4. d3 {[%clk 0:15:22]}  Bc5 {[%clk 0:15:46]} 5. O-O {[%clk 0:12:34]}  Nd4 {[%clk 0:15:11]} 6. Nxd4 {[%clk 0:12:42]}  Bxd4 {[%clk 0:15:21]} 7. Nd2 {[%clk 0:12:32]}  O-O {[%clk 0:15:12]} 8. Nf3 {[%clk 0:12:25]}  Bb6 {[%clk 0:15:19]} 9. h3 {[%clk 0:11:40]}  c6 {[%clk 0:13:49]} 10. Ba4 {[%clk 0:11:47]}  d6 {[%clk 0:13:46]} 11. Bb3 {[%clk 0:11:41]}  Re8 {[%clk 0:13:28]} 12. Re1 {[%clk 0:11:22]}  Be6 {[%clk 0:13:18]} 13. c3 {[%clk 0:11:30]}  Bxb3 {[%clk 0:13:23]} 14. Qxb3 {[%clk 0:11:36]}  h6 {[%clk 0:12:19]} 15. a4 {[%clk 0:11:21]}  Qc7 {[%clk 0:12:02]} 16. Nh4 {[%clk 0:11:09]}  d5 {[%clk 0:11:57]} 17. Qd1 {[%clk 0:11:01]}  Re6 {[%clk 0:10:46]} 18. Nf5 {[%clk 0:11:00]}  Bc5 {[%clk 0:09:56]} 19. Qf3 {[%clk 0:10:45]}  Bf8 {[%clk 0:09:46]} 20. Be3 {[%clk 0:10:30]}  Kh7 {[%clk 0:09:39]} 21. b4 {[%clk 0:10:24]}  g6 {[%clk 0:09:30]} 22. Ng3 {[%clk 0:10:30]}  a5 {[%clk 0:09:07]} 23. Reb1 {[%clk 0:10:26]}  axb4 {[%clk 0:08:24]} 24. cxb4 {[%clk 0:10:34]}  Kg7 {[%clk 0:08:16]} 25. a5 {[%clk 0:09:54]}  Qd7 {[%clk 0:08:08]} 26. Rb3 {[%clk 0:09:08]}  Kg8 {[%clk 0:06:49]} 27. Rc1 {[%clk 0:08:40]}  Bg7 {[%clk 0:06:16]} 28. Rcb1 {[%clk 0:07:45]}  h5 {[%clk 0:05:04]} 29. Ne2 {[%clk 0:06:37]}  Ree8 {[%clk 0:04:48]} 30. Bc5 {[%clk 0:06:26]}  Qe6 {[%clk 0:04:51]} 31. Nc3 {[%clk 0:06:24]}  dxe4 {[%clk 0:03:43]} 32. dxe4 {[%clk 0:06:32]}  Qc4 {[%clk 0:03:46]} 33. Bb6 {[%clk 0:06:05]}  Nd7 {[%clk 0:03:13]} 34. Na4 {[%clk 0:04:49]}  Qb5 {[%clk 0:03:10]} 35. Rd1 {[%clk 0:03:38]}  Nxb6 {[%clk 0:03:09]} 36. Nxb6 {[%clk 0:03:46]}  Rad8 {[%clk 0:03:19]} 37. Nd7 {[%clk 0:03:28]}  Qc4 {[%clk 0:02:58]} 38. Rbd3 {[%clk 0:03:08]}  Qxb4 {[%clk 0:02:05]} 39. Nxe5 {[%clk 0:03:02]}  Bxe5 {[%clk 0:01:22]} 40. Rxd8 {[%clk 0:03:05]}  Rxd8 {[%clk 0:01:32]} 41. Rxd8+ {[%clk 0:03:14]}  Kg7 {[%clk 0:01:42]} 42. g3 {[%clk 0:02:59]}  Qxa5 {[%clk 0:01:39]} 43. Rd7 {[%clk 0:03:06]}  Qa2 {[%clk 0:01:44]} 44. Rxb7 {[%clk 0:03:07]}  c5 {[%clk 0:01:38]} 45. Qb3 {[%clk 0:03:00]}  Qxb3 {[%clk 0:01:36]} 46. Rxb3 {[%clk 0:03:10]}  c4 {[%clk 0:01:45]} 47. Rb6 {[%clk 0:02:58]}  c3 {[%clk 0:01:47]} 48. Rc6 {[%clk 0:03:06]}  h4 {[%clk 0:00:54]} 49. gxh4 {[%clk 0:03:07]}  Kh6 {[%clk 0:00:59]} 50. Kg2 {[%clk 0:03:06]}  f6 {[%clk 0:01:07]} 51. Rc8 {[%clk 0:02:59]}  f5 {[%clk 0:00:17]} 52. f3 {[%clk 0:01:47]}  Bd4 {[%clk 0:00:12]} 53. Rc4 {[%clk 0:01:53]}  Bf6 {[%clk 0:00:15]} 54. Rc6 {[%clk 0:02:00]}  Kg7 {[%clk 0:00:22]} 55. h5 {[%clk 0:01:51]}  fxe4 {[%clk 0:00:19]} 56. h6+ {[%clk 0:02:00]}  Kf7 {[%clk 0:00:24]} 57. fxe4 {[%clk 0:02:07]}  Bd4 {[%clk 0:00:12]} 58. Kf3 {[%clk 0:02:12]}  Be5 {[%clk 0:00:04]} 59. Ke3 {[%clk 0:02:14]} 1-0


[Site "http://www.chessbomb.com"]